bitfinex-derivatives/quotes_BNBF0:USTF0_20250617
["timestamp","ask_amount","ask_price","bid_price","bid_amount"]
[1750168973241,2.27629645,652.72,652.6,1.163]
[1750168974047,2.27629645,652.69,652.6,1.163]
[1750168974245,2.27629645,652.66,652.6,1.163]
[1750168974845,2.27629645,652.65,652.6,1.163]
[1750168975546,2.27629645,652.66,652.6,1.163]
[1750168976148,1.52164685,652.64,652.6,1.163]
[1750168976446,1.52164685,652.63,652.6,1.163]
[1750168977246,0.30638662,652.77,652.6,1.163]
[1750168977247,1.52164685,652.62,652.6,1.163]
[1750168977749,1.52164685,652.63,652.6,1.163]
[1750168978844,1.52164685,652.62,652.6,1.163]
[1750168981549,1.52164685,652.61,652.6,1.163]
[1750168981846,1.52164685,652.62,652.6,1.163]
[1750168982246,1.52164685,652.61,652.6,1.163]
[1750168984351,0.30638662,652.77,652.6,1.163]
[1750168986050,2.27629645,652.68,652.6,1.163]
[1750168986249,2.27629645,652.67,652.6,1.163]
[1750168986750,2.27629645,652.69,652.6,1.163]
[1750168987351,2.27629645,652.66,652.6,1.163]
[1750168988152,2.27629645,652.67,652.6,1.163]
[1750168989249,2.27629645,652.66,652.6,1.163]
[1750168989454,2.27629645,652.67,652.6,1.163]
[1750168989753,2.27629645,652.66,652.6,1.163]
[1750168990051,2.27629645,652.67,652.6,1.163]
[1750168990252,2.27629645,652.66,652.6,1.163]
[1750168990849,0.30638662,652.77,652.6,1.163]
[1750168991254,2.28553413,652.74,652.6,1.163]
[1750168991456,0.3064054,652.73,652.6,1.163]
[1750168995458,0.3064054,652.73,652.59,1.482]
[1750168995652,2.59193953,652.73,652.59,1.482]
[1750168996353,0.3064054,652.73,652.59,1.482]
[1750168997460,0.3064054,652.73,652.6,1.037]
[1750168999256,2.59193953,652.73,652.6,1.037]
[1750169001059,2.28553413,652.64,652.6,1.037]
[1750169001464,2.28553413,652.65,652.6,1.037]
[1750169001959,2.28553413,652.64,652.6,1.037]
[1750169002263,2.28553413,652.65,652.6,1.037]
[1750169002663,0.3064054,652.73,652.6,1.037]
[1750169002664,2.28553413,652.62,652.6,1.037]
[1750169002864,2.28553413,652.61,652.6,1.037]
[1750169004562,0.3064054,652.73,652.6,1.037]
[1750169009566,0.3064054,652.73,652.44,3.187]
[1750169009766,2.2834138,652.56,652.44,3.187]
[1750169010066,0.3064054,652.73,652.44,3.187]
[1750169010067,2.2834138,652.55,652.44,3.187]
[1750169010570,2.2834138,652.56,652.44,3.187]
[1750169010767,0.3064054,652.73,652.44,3.187]
[1750169010768,2.2834138,652.55,652.44,3.187]
[1750169011467,2.2834138,652.56,652.44,3.187]
[1750169011670,2.2834138,652.57,652.44,3.187]
[1750169011976,2.2834138,652.56,652.45,1.013]
[1750169012366,2.2834138,652.65,652.45,1.013]
[1750169012570,0.30644765,652.64,652.45,1.013]
[1750169013772,1.51994079,652.49,652.45,1.013]
[1750169013974,0.3065228,652.48,652.45,1.013]
[1750169014368,1.82646359,652.48,652.45,1.013]
[1750169014768,0.3065228,652.48,652.45,1.013]
[1750169014974,1.51929605,652.46,652.45,1.013]
[1750169015377,0.3065228,652.48,652.45,1.013]
[1750169015772,1.51873864,652.46,652.45,1.013]
[1750169016077,1.82527084,652.46,652.45,1.013]
[1750169016773,0.3065322,652.46,652.45,1.013]
[1750169017277,1.82527084,652.46,652.45,1.013]
[1750169017478,0.3065322,652.46,652.45,1.013]
[1750169017678,1.8244493,652.46,652.45,1.013]
[1750169017878,0.3065322,652.46,652.45,1.013]
[1750169018079,1.82450106,652.46,652.45,1.013]
[1750169019277,0.3065322,652.46,652.45,1.013]
[1750169023679,0.57333585,652.46,652.45,1.013]
[1750169030888,2.08937355,652.46,652.45,1.013]
[1750169031286,0.57333585,652.46,652.45,1.013]
[1750169035185,2.08937355,652.46,652.45,1.013]
[1750169036086,0.57333585,652.46,652.45,1.013]
[1750169045994,0.57333585,652.46,652.37,1.488]
[1750169047897,0.57333585,652.46,652.37,2.622]
[1750169048300,0.26680365,652.46,652.37,2.622]
[1750169054197,3.78469638,653.75,652.37,2.622]
[1750169054198,1.5160377,652.81,652.37,2.622]
[1750169054396,0.26669221,652.57,652.37,2.622]
[1750169054595,1.5160377,652.8,652.37,2.622]
[1750169054797,5.30759597,654.06,652.37,2.622]
[1750169054798,1.5160377,652.84,652.37,2.622]
[1750169054997,0.26667791,652.61,652.37,2.622]
[1750169055198,1.5160377,652.86,652.37,2.622]
[1750169055598,0.26667893,652.61,652.37,2.622]
[1750169055802,1.5160377,652.86,652.37,2.622]
[1750169056002,0.2666871,652.56,652.37,2.622]
[1750169056500,1.5160377,652.85,652.37,2.622]
[1750169056697,0.2666871,652.56,652.37,2.622]
[1750169056901,1.5160377,652.85,652.37,2.622]
[1750169057098,1.5160377,652.86,652.37,2.622]
[1750169057399,1.5160377,652.85,652.37,2.622]
[1750169057802,0.2666871,652.74,652.37,2.622]
[1750169058303,0.2666871,652.74,652.38,1.435]
[1750169058505,0.2666871,652.74,652.38,2.506]
[1750169067809,1.7827248,652.74,652.38,2.506]
[1750169069812,0.2666871,652.74,652.38,2.506]
[1750169070813,1.5160377,652.73,652.38,2.506]
[1750169071014,1.5160377,652.69,652.38,2.506]
[1750169071216,1.5160377,652.68,652.38,2.506]
[1750169071614,1.5160377,652.69,652.38,2.506]
[1750169071913,1.5160377,652.68,652.38,2.506]
[1750169072617,0.2666871,652.74,652.38,2.506]
[1750169072618,1.5160377,652.69,652.38,2.506]
[1750169073018,1.5160377,652.68,652.38,2.506]
[1750169073321,1.5160377,652.67,652.38,2.506]
[1750169074017,1.5160377,652.7,652.38,2.506]
[1750169074220,1.5160377,652.62,652.38,2.506]
[1750169075014,1.5160377,652.61,652.38,2.506]
[1750169077122,1.5160377,652.61,652.38,1.071]
[1750169078023,1.5160377,652.61,652.39,1.533]
[1750169079120,1.5160377,652.6,652.39,1.533]
[1750169080220,1.5160377,652.59,652.39,1.533]
[1750169080822,1.5160377,652.59,652.4,1.435]
[1750169081723,1.5160377,652.58,652.4,1.435]
[1750169081926,1.5160377,652.56,652.4,1.435]
[1750169082327,2.2834138,652.69,652.4,1.435]
[1750169082624,0.30642887,652.68,652.4,1.435]
[1750169084027,1.51359347,652.55,652.4,1.435]
[1750169088031,0.30642887,652.68,652.4,1.435]
[1750169090535,0.30642887,652.68,652.41,1.296]
[1750169095443,1.51588845,652.47,652.41,1.296]
[1750169096140,1.51588845,652.46,652.41,1.296]
[1750169096337,1.51588845,652.43,652.41,1.296]
[1750169096837,1.51588845,652.44,652.41,1.296]
[1750169097037,1.51588845,652.43,652.41,1.296]
[1750169098440,1.51588845,652.44,652.41,1.296]
[1750169101640,1.51588845,652.43,652.41,1.296]
[1750169102144,1.51588845,652.47,652.41,1.296]
[1750169103443,1.51588845,652.46,652.41,1.296]
[1750169104945,1.51588845,652.52,652.41,1.296]
[1750169106942,1.51588845,652.53,652.41,1.296]
[1750169108242,1.51588845,652.54,652.41,1.296]
[1750169108645,1.51588845,652.53,652.41,1.296]
[1750169109146,1.51588845,652.54,652.41,1.296]
[1750169112047,1.51588845,652.53,652.41,1.296]
[1750169113348,1.51588845,652.52,652.41,1.296]
[1750169113751,1.51588845,652.52,652.35,1.235]
[1750169114350,1.51588845,652.53,652.35,1.235]
[1750169114644,1.51588845,652.52,652.35,1.235]
[1750169114848,1.51588845,652.49,652.35,1.235]
[1750169115050,1.51588845,652.46,652.35,1.235]
[1750169115249,1.51588845,652.45,652.35,1.235]
[1750169115753,1.51588845,652.45,652.36,1.557]
[1750169115952,1.51588845,652.46,652.36,1.557]
[1750169116152,0.30642887,652.68,652.36,1.557]
[1750169116153,1.51588845,652.43,652.36,1.557]
[1750169116451,1.51588845,652.44,652.36,1.557]
[1750169116651,0.30642887,652.68,652.36,1.557]
[1750169116652,1.51588845,652.4,652.36,1.557]
[1750169118252,1.51588845,652.39,652.36,1.557]
[1750169120053,1.51588845,652.4,652.36,1.557]
[1750169120657,1.51588845,652.43,652.36,1.557]
[1750169120857,1.51588845,652.42,652.36,1.557]
[1750169121258,1.51588845,652.43,652.36,1.557]
[1750169121754,1.51588845,652.44,652.36,1.557]
[1750169122157,1.51588845,652.52,652.36,1.557]
[1750169122363,1.51588845,652.51,652.36,1.557]
[1750169123059,1.51588845,652.5,652.36,1.557]
[1750169125159,1.51588845,652.57,652.36,1.557]
[1750169125656,1.51588845,652.6,652.36,1.557]
[1750169125957,1.51588845,652.64,652.36,1.557]
[1750169126156,1.51588845,652.63,652.36,1.557]
[1750169126356,1.51588845,652.64,652.36,1.557]
[1750169126557,1.51588845,652.55,652.36,1.557]
[1750169126763,1.51588845,652.58,652.36,1.557]
[1750169127060,0.30642887,652.68,652.36,1.557]
[1750169127061,1.51588845,652.57,652.36,1.557]
[1750169127461,1.51588845,652.58,652.36,1.557]
[1750169128261,1.51588845,652.59,652.36,1.557]
[1750169128456,1.51588845,652.58,652.36,1.557]
[1750169128661,1.51588845,652.6,652.36,1.557]
[1750169128857,1.51588845,652.6,652.29,2.477]
[1750169129262,1.51588845,652.59,652.29,2.477]
[1750169129563,1.51588845,652.63,652.29,2.477]
[1750169130061,1.51588845,652.62,652.29,2.477]
[1750169130358,1.51588845,652.63,652.29,2.477]
[1750169130562,1.51588845,652.62,652.29,2.477]
[1750169130763,1.51588845,652.62,652.3,1.539]
[1750169130962,1.51588845,652.63,652.3,1.539]
[1750169131466,1.51588845,652.64,652.3,1.539]
[1750169133664,1.51588845,652.63,652.3,1.539]
[1750169134469,1.51588845,652.64,652.3,1.539]
[1750169135668,1.51588845,652.66,652.3,1.539]
[1750169136064,1.51588845,652.67,652.3,1.539]
[1750169138071,1.82231732,652.68,652.3,1.539]
[1750169138371,1.82231732,652.68,652.31,1.408]
[1750169138570,1.51588845,652.66,652.31,1.408]
[1750169139373,1.51588845,652.65,652.31,1.408]
[1750169140766,1.51588845,652.64,652.31,1.408]
[1750169141071,1.51588845,652.65,652.31,1.408]
[1750169141269,1.51588845,652.64,652.31,1.408]
[1750169141569,1.51588845,652.67,652.31,1.408]
[1750169142672,1.82231732,652.68,652.31,1.408]
[1750169145371,1.51588845,652.67,652.31,1.408]
[1750169146173,1.51588845,652.67,652.32,1.36]
[1750169146671,1.51588845,652.66,652.32,1.36]
[1750169147873,1.82231732,652.68,652.32,1.36]
[1750169151474,1.51588845,652.67,652.32,1.36]
[1750169152579,1.51588845,652.66,652.32,1.36]
[1750169153880,1.82231732,652.68,652.32,1.36]
[1750169155082,1.51588845,652.65,652.32,1.36]
[1750169155781,1.51588845,652.64,652.32,1.36]
[1750169157284,1.51588845,652.65,652.32,1.36]
[1750169159478,1.51588845,652.64,652.32,1.36]
[1750169160080,1.51588845,652.64,652.33,1.32]
[1750169160380,1.51588845,652.63,652.33,1.32]
[1750169160685,1.51588845,652.62,652.33,1.32]
[1750169161083,1.51588845,652.59,652.33,1.32]
[1750169161585,1.51588845,652.57,652.33,1.32]
[1750169161781,1.51588845,652.59,652.33,1.32]
[1750169162181,1.51588845,652.6,652.33,1.32]
[1750169162586,1.51588845,652.59,652.33,1.32]
[1750169163488,0.30642887,652.68,652.33,1.32]
[1750169163489,1.51588845,652.58,652.33,1.32]
[1750169164389,1.51588845,652.57,652.33,1.32]
[1750169164984,1.51588845,652.58,652.33,1.32]
[1750169165189,1.51588845,652.57,652.33,1.32]
[1750169165889,1.51588845,652.54,652.33,1.32]
[1750169166684,1.51588845,652.56,652.33,1.32]
[1750169166890,1.51588845,652.57,652.33,1.32]
[1750169167090,1.51588845,652.6,652.33,1.32]
[1750169167287,1.51588845,652.63,652.33,1.32]
[1750169167492,1.51588845,652.63,652.34,1.32]
[1750169168090,1.51588845,652.64,652.34,1.32]
[1750169169388,1.51588845,652.66,652.34,1.32]
[1750169169588,1.51588845,652.64,652.34,1.32]
[1750169169888,1.51588845,652.62,652.34,1.32]
[1750169170291,1.51588845,652.57,652.34,1.32]
[1750169171288,1.51588845,652.57,652.35,1.073]
[1750169171592,1.51588845,652.54,652.35,1.073]
[1750169171792,1.51588845,652.55,652.35,1.073]
[1750169171991,0.30642887,652.68,652.35,1.073]
[1750169171992,1.51588845,652.57,652.35,1.073]
[1750169172295,1.51588845,652.58,652.35,1.073]
[1750169172591,1.51588845,652.57,652.35,1.073]
[1750169173091,1.51588845,652.46,652.35,1.073]
[1750169173492,1.51588845,652.46,652.36,1.117]
[1750169173689,1.51588845,652.45,652.36,1.117]
[1750169174389,1.51588845,652.46,652.36,1.117]
[1750169175199,1.51588845,652.47,652.36,1.117]
[1750169176195,1.51588845,652.44,652.36,1.117]
[1750169177399,1.51588845,652.43,652.36,1.117]
[1750169178199,1.51588845,652.44,652.36,1.117]
[1750169179002,1.51588845,652.43,652.36,1.117]
[1750169179203,1.51588845,652.44,652.36,1.117]
[1750169179405,1.51588845,652.43,652.36,1.117]
[1750169180102,1.51588845,652.44,652.36,1.117]
[1750169182408,1.51588845,652.43,652.36,1.117]
[1750169183505,1.51588845,652.42,652.36,1.117]
[1750169183710,1.51708014,652.37,652.36,1.117]
[1750169183907,2.27383268,652.49,652.36,1.117]
[1750169184110,2.27383268,652.45,652.36,1.117]
[1750169184409,2.27383268,652.47,652.36,1.117]
[1750169184609,2.27383268,652.45,652.36,1.117]
[1750169185009,2.27383268,652.46,652.36,1.117]
[1750169186910,0.2666871,652.74,652.36,1.117]
[1750169189715,1.51537436,652.38,652.36,1.117]
[1750169190516,2.27306154,652.52,652.36,1.117]
[1750169190517,1.51537436,652.39,652.36,1.117]
[1750169191917,1.51537436,652.4,652.36,1.117]
[1750169192318,1.51537436,652.54,652.36,1.117]
[1750169192618,1.51537436,652.58,652.36,1.117]
[1750169193013,1.51537436,652.57,652.36,1.117]
[1750169193515,1.51537436,652.58,652.36,1.117]
[1750169193819,1.51537436,652.59,652.37,1.16]
[1750169194420,1.51537436,652.71,652.37,1.16]
[1750169196624,1.51537436,652.7,652.37,1.16]
[1750169197224,1.51537436,652.69,652.37,1.16]
[1750169197824,1.51537436,652.7,652.37,1.16]
[1750169198023,1.51537436,652.69,652.37,1.16]
[1750169198220,1.51537436,652.68,652.37,1.16]
[1750169199428,1.51537436,652.69,652.37,1.16]
[1750169199826,1.51537436,652.7,652.37,1.16]
[1750169200121,1.51537436,652.72,652.37,1.16]
[1750169200622,1.51537436,652.73,652.37,1.16]
[1750169200828,1.51537436,652.72,652.37,1.16]
[1750169201123,1.51537436,652.73,652.37,1.16]
[1750169201728,1.51537436,652.71,652.37,1.16]
[1750169202027,1.51537436,652.7,652.37,1.16]
[1750169202227,1.51537436,652.71,652.37,1.16]
[1750169202525,1.51537436,652.7,652.37,1.16]
[1750169202726,1.51537436,652.71,652.37,1.16]
[1750169203028,1.51537436,652.67,652.37,1.16]
[1750169203224,1.51537436,652.69,652.37,1.16]
[1750169205329,1.51537436,652.68,652.37,1.16]
[1750169205529,1.51537436,652.72,652.37,1.16]
[1750169205829,1.51537436,652.71,652.37,1.16]
[1750169207430,1.51537436,652.72,652.37,1.16]
[1750169207630,1.51537436,652.72,652.36,1.117]
[1750169207832,1.51537436,652.71,652.36,1.117]
[1750169208131,1.51537436,652.72,652.36,1.117]
[1750169208331,1.78206146,652.74,652.36,1.117]
[1750169209528,0.2666871,652.74,652.36,1.117]
[1750169210730,0.2666871,652.74,652.37,1.333]
[1750169214934,0.3064054,652.73,652.37,1.333]
[1750169216729,0.3064054,652.73,652.38,1.356]
[1750169221436,0.3064054,652.73,652.39,1.449]
[1750169225442,0.3064054,652.73,652.4,1.3]
[1750169230742,0.3064054,652.73,652.41,1.108]
[1750169231443,0.26661457,652.91,652.41,1.108]
[1750169237452,0.26661457,652.91,652.42,1.277]
[1750169238353,1.51537436,653.44,652.42,1.277]
[1750169238550,0.26653391,653.04,652.42,1.277]
[1750169238953,0.30607716,653.43,652.42,1.277]
[1750169239149,0.26652575,653.04,652.42,1.277]
[1750169239346,0.30607716,653.43,652.42,1.277]
[1750169239754,0.26652575,653.04,652.42,1.277]
[1750169240053,0.30607716,653.43,652.42,1.277]
[1750169240354,0.26652575,653.04,652.42,1.277]
[1750169240553,0.30607716,653.43,652.42,1.277]
[1750169240754,0.26652575,653.04,652.42,1.277]
[1750169241053,0.30607716,653.43,652.42,1.277]
[1750169241251,0.26652575,653.04,652.42,1.277]
[1750169241549,0.30607716,653.43,652.42,1.277]
[1750169241849,0.26652575,653.04,652.42,1.277]
[1750169242350,0.30607716,653.43,652.42,1.277]
[1750169242550,0.26652575,653.04,652.42,1.277]
[1750169242852,0.30607716,653.43,652.42,1.277]
[1750169243155,0.26652575,653.04,652.42,1.277]
[1750169243354,0.30607716,653.43,652.42,1.277]
[1750169243551,0.26652575,653.04,652.42,1.277]
[1750169244050,0.30607716,653.43,652.42,1.277]
[1750169244255,0.26652575,653.04,652.42,1.277]
[1750169244452,0.30607716,653.43,652.42,1.277]
[1750169244756,0.26652575,653.04,652.42,1.277]
[1750169244957,0.30607716,653.43,652.42,1.277]
[1750169245257,0.26652575,653.04,652.42,1.277]
[1750169245553,0.30607716,653.43,652.42,1.277]
[1750169245955,0.26652575,653.04,652.42,1.277]
[1750169246152,0.30607716,653.43,652.42,1.277]
[1750169246354,0.26652268,653.07,652.42,1.277]
[1750169246856,0.30607716,653.43,652.43,1.693]
[1750169247054,0.26651962,653.07,652.43,1.693]
[1750169247255,0.30607716,653.43,652.43,1.693]
[1750169247654,0.2665186,653.07,652.43,1.693]
[1750169247858,0.30607716,653.43,652.43,1.693]
[1750169248054,0.26649411,653.19,652.43,1.693]
[1750169252862,0.26649411,653.19,652.44,1.447]
[1750169256762,0.26649411,653.19,652.45,1.378]
[1750169260767,0.30607716,653.43,652.45,1.378]
[1750169261064,0.26647574,653.27,652.45,1.378]
[1750169266869,0.26647574,653.27,652.46,1.619]
[1750169272673,0.26647574,653.27,652.47,1.205]
[1750169275175,0.26647574,653.27,652.48,1.581]
[1750169284485,0.26647574,653.27,652.48,2.7209278]
[1750169284786,0.30607716,653.43,652.51,1.1399278]
[1750169285087,0.26644412,653.41,652.54,1.1399278]
[1750169285685,0.26644412,653.41,652.55,1.1399278]
[1750169285982,0.26644412,653.41,652.56,1.1399278]
[1750169286182,0.26644412,653.41,652.55,1.1399278]
[1750169286381,0.26644412,653.41,652.56,1.1399278]
[1750169286887,0.26644412,653.41,652.67,1.1399278]
[1750169287088,0.26644412,653.41,652.69,1.1399278]
[1750169287286,0.30607716,653.43,652.69,1.1399278]
[1750169288284,0.30607716,653.43,652.7,1.1399278]
[1750169288484,0.30607716,653.43,652.55,1.52709547]
[1750169288485,0.30607716,653.43,652.69,1.1399278]
[1750169288985,0.30607716,653.43,652.68,1.1399278]
[1750169289290,0.30607716,653.43,652.48,1.581]
[1750169289291,0.30607716,653.43,652.7,2.5749278]
[1750169289489,0.30607716,653.43,652.7,1.435]
[1750169289984,0.30607716,653.43,652.7,2.5749278]
[1750169290189,0.30607716,653.43,652.7,1.435]
[1750169291192,0.26640231,653.51,652.7,1.435]
[1750169292392,0.26640231,653.51,652.71,1.1399278]
[1750169292690,0.26640231,653.51,652.73,1.1399278]
[1750169292892,0.26640231,653.51,652.78,1.1399278]
[1750169293088,1.51537436,653.85,652.81,1.1399278]
[1750169293287,0.2663391,653.59,652.82,1.1399278]
[1750169293494,1.51537436,653.81,652.85,1.1399278]
[1750169293793,0.26633095,653.59,652.83,1.1399278]
[1750169294090,0.26633095,653.59,652.82,1.1399278]
[1750169294288,0.26633095,653.59,652.7,1.435]
[1750169295689,0.26633095,653.59,652.78,1.13976665]
[1750169298093,0.26633095,653.59,652.77,1.13976665]
[1750169300191,0.26633095,653.59,652.78,1.499]
[1750169306392,0.26633095,653.59,652.79,1.132]
[1750169306593,0.26633095,653.59,652.79,2.692]
[1750169316302,0.26633095,653.59,652.79,3.83176665]
[1750169317403,0.26633095,653.59,652.8,1.13976665]
[1750169317604,0.26633095,653.59,652.8,2.57476665]
[1750169321207,0.26633095,653.59,652.8,1.435]
[1750169321907,0.26633095,653.59,652.83,1.13976665]
[1750169322105,1.51369184,653.89,652.84,1.13976665]
[1750169322304,0.26631872,653.66,652.85,1.13976665]
[1750169323408,0.26631872,653.66,652.84,1.13976665]
[1750169323909,0.26631872,653.66,652.85,1.406]
[1750169325210,0.30586651,653.88,652.85,1.406]
[1750169325408,0.30586651,653.88,652.85,2.54576665]
[1750169325604,0.30586651,653.88,652.99,1.13976665]
[1750169325804,0.26627287,653.79,652.98,1.13976665]
[1750169326206,0.26627287,653.79,652.97,1.13976665]
[1750169326408,0.26627287,653.79,652.98,1.13976665]
[1750169327505,0.26627287,653.79,652.97,1.13976665]
[1750169329513,0.26627287,653.79,652.96,1.13976665]
[1750169330015,0.26627287,653.79,652.95,1.13976665]
[1750169330213,0.26627287,653.79,652.85,1.406]
[1750169330418,0.26627287,653.79,652.94,1.13762667]
[1750169330711,0.26627287,653.79,652.95,1.13776865]
[1750169330915,0.26627287,653.79,652.94,1.13776865]
[1750169331616,0.26627287,653.79,652.93,1.13776865]
[1750169332016,0.26627287,653.79,652.87,1.13776865]
[1750169332317,0.26627287,653.79,652.85,1.406]
[1750169333019,0.26627287,653.79,652.86,1.435]
[1750169338322,0.26627287,653.79,652.86,2.57276865]
[1750169339720,0.26627287,653.79,652.86,1.435]
[1750169341326,1.51369184,653.78,652.86,1.435]
[1750169341623,1.51369184,653.78,652.87,1.251]
[1750169342025,1.51369184,653.77,652.87,1.251]
[1750169342322,1.51369184,653.74,652.87,1.251]
[1750169343222,1.51369184,653.72,652.87,1.251]
[1750169343426,1.51369184,653.71,652.87,1.251]
[1750169344526,1.51369184,653.7,652.87,1.251]
[1750169345624,1.51369184,653.7,652.88,1.358]
[1750169346128,1.51369184,653.69,652.88,1.358]
[1750169346525,1.51369184,653.71,652.88,1.358]
[1750169346729,1.51369184,653.74,652.89,1.1407022]
[1750169347228,1.51369184,653.73,652.89,1.1407022]
[1750169347426,1.51369184,653.74,652.89,1.1407022]
[1750169347625,1.51369184,653.75,652.9,1.1407022]
[1750169347824,1.51369184,653.74,652.9,1.1407022]
[1750169348426,1.51369184,653.7,652.94,1.1407022]
[1750169349026,1.51369184,653.73,652.89,1.1407022]
[1750169349230,1.51369184,653.74,652.9,1.1407022]
[1750169349531,1.51369184,653.75,652.91,1.1407022]
[1750169349927,1.51369184,653.75,652.92,1.1407022]
[1750169350131,1.51369184,653.76,652.92,1.1407022]
[1750169350727,1.51369184,653.75,652.92,1.1407022]
[1750169351630,1.51369184,653.76,652.92,1.1407022]
[1750169352330,1.51369184,653.75,652.92,1.1407022]
[1750169353233,1.51369184,653.75,652.93,1.1407022]
[1750169353435,1.51369184,653.74,652.93,1.1407022]
[1750169354032,1.51369184,653.75,652.94,1.049]
[1750169355438,1.51369184,653.75,652.95,1.037]
[1750169355635,1.51369184,653.78,652.96,1.1407022]
[1750169355930,0.26627287,653.79,652.95,2.1777022]
[1750169355931,1.51369184,653.77,652.95,2.1777022]
[1750169356836,1.51369184,653.75,652.95,1.037]
[1750169358841,1.51369184,653.74,652.95,1.037]
[1750169359043,1.51369184,653.7,652.97,1.1407022]
[1750169359236,1.51369184,653.69,652.97,1.1407022]
[1750169363537,1.51369184,653.69,652.98,1.1407022]
[1750169363939,1.51369184,653.71,652.99,1.1407022]
[1750169364440,1.51369184,653.7,653.0,1.1407022]
[1750169364845,1.51369184,653.77,653.08,1.1407022]
[1750169365445,1.51369184,653.78,653.08,1.1407022]
[1750169365646,1.77996471,653.79,653.1,1.1407022]
[1750169365942,0.26627287,653.79,653.11,1.1407022]
[1750169366341,1.77996471,653.79,653.1,1.1407022]
[1750169367842,0.26627287,653.79,653.06,1.1407022]
[1750169369450,0.26627287,653.79,653.04,1.1407022]
[1750169373754,0.26627287,653.79,653.05,1.436]
[1750169375051,0.26627287,653.79,653.05,2.5767022]
[1750169377651,0.26627287,653.79,653.06,1.033]
[1750169377855,0.26627287,653.79,653.07,1.1407022]
[1750169378055,0.26627287,653.79,653.06,1.033]
[1750169378953,0.26627287,653.79,653.06,2.1737022]
[1750169379456,0.26627287,653.79,653.08,1.1407022]
[1750169379655,0.26627287,653.79,653.07,1.1407022]
[1750169380557,0.26627287,653.79,653.06,1.033]
[1750169385659,0.26627287,653.79,653.07,1.454]
[1750169388965,0.26627287,653.79,653.07,2.5947022]
[1750169389164,0.26627287,653.79,653.1,1.1407022]
[1750169389364,0.26627287,653.79,653.09,1.1407022]
[1750169389562,0.26627287,653.79,653.08,1.425]
[1750169389563,0.30586651,653.88,653.16,1.1407022]
[1750169389763,0.30586651,653.88,653.17,1.1407022]
[1750169390159,0.30586651,653.88,653.19,1.1407022]
[1750169390362,0.30586651,653.88,653.22,1.1407022]
[1750169390556,0.30586651,653.88,653.21,1.1407022]
[1750169390958,0.30586651,653.88,653.24,1.1407022]
[1750169391161,0.30586651,653.88,653.25,1.1407022]
[1750169391362,0.30586651,653.88,653.29,1.1407022]
[1750169391561,0.30586651,653.88,653.28,1.1407022]
[1750169391765,0.26620565,653.97,653.28,1.1407022]
[1750169392263,0.26620565,653.97,653.29,2.4177022]
[1750169392466,0.26620565,653.97,653.29,1.277]
[1750169399866,1.77989749,653.97,653.29,1.277]
[1750169400069,1.51369184,653.96,653.29,1.277]
[1750169400471,0.26620565,653.97,653.29,1.277]
[1750169408674,0.26620565,653.97,653.3,1.433]
[1750169411175,0.26620565,653.97,653.31,1.289]
[1750169421889,1.77989749,653.97,653.31,1.289]
[1750169422289,1.51369184,653.96,653.31,1.289]
[1750169423287,1.51369184,653.95,653.31,1.289]
[1750169423492,1.51369184,653.94,653.31,1.289]
[1750169423987,1.77989749,653.97,653.31,1.289]
[1750169424186,1.77989749,653.97,653.32,1.58]
[1750169424592,1.51369184,653.96,653.32,1.58]
[1750169426494,1.51369184,653.95,653.32,1.58]
[1750169426691,1.51369184,653.94,653.32,1.58]
[1750169431195,1.51369184,653.88,653.32,1.58]
[1750169431992,1.51369184,653.87,653.32,1.58]
[1750169433498,1.51369184,653.88,653.32,1.58]
[1750169433998,1.51369184,653.87,653.32,1.58]
[1750169434897,1.51369184,653.88,653.32,1.58]
[1750169435193,0.26620565,653.97,653.32,1.58]
[1750169435194,1.51369184,653.87,653.32,1.58]
[1750169436401,1.51369184,653.86,653.32,1.58]